bitfinex-derivatives/quotes_ETHF0:USTF0_20260118
["timestamp","ask_amount","ask_price","bid_price","bid_amount"]
[1768766850186,0.92592397,3346.6,3344.9,0.13510491]
[1768766850387,0.92592397,3346.5,3344.9,0.13510491]
[1768766850687,0.92592397,3346.4,3344.9,0.13510491]
[1768766850997,0.92592397,3346.3,3344.9,0.13510491]
[1768766851202,0.00097932,3346.7,3344.9,0.13510491]
[1768766851388,0.92613381,3346.6,3344.9,0.13510491]
[1768766851589,0.92613381,3346.5,3344.9,0.13510491]
[1768766851895,0.92613381,3346.4,3344.9,0.13510491]
[1768766852095,0.92613381,3346.3,3344.9,0.13510491]
[1768766852396,0.00097932,3346.7,3344.9,0.13510491]
[1768766852397,0.92613381,3346.2,3344.9,0.13510491]
[1768766852586,0.00097932,3346.7,3344.9,0.13510491]
[1768766852786,0.9265525,3346.6,3344.9,0.13510491]
[1768766852998,0.9265525,3346.5,3344.9,0.13510491]
[1768766853195,0.9265525,3346.4,3344.9,0.13510491]
[1768766853502,0.9265525,3346.3,3344.9,0.13510491]
[1768766853698,0.9265525,3346.2,3344.9,0.13510491]
[1768766853898,1.59840571,3346.7,3344.9,0.13510491]
[1768766854099,2.52516259,3346.7,3344.9,0.13510491]
[1768766856193,0.00083617,3346.6,3344.9,0.13510491]
[1768766856497,0.00083617,3346.5,3344.9,0.13510491]
[1768766856701,0.92675688,3346.4,3344.9,0.13510491]
[1768766861500,0.92675688,3346.3,3344.9,0.13510491]
[1768766861797,0.92675688,3346.2,3344.9,0.13510491]
[1768766861986,0.92675688,3346.1,3344.9,0.13510491]
[1768766862186,0.92675688,3346.0,3344.9,0.13510491]
[1768766869603,0.00228121,3346.1,3344.9,0.13510491]
[1768766869905,0.92897326,3346.0,3344.9,0.13510491]
[1768766870105,0.92897326,3345.9,3344.9,0.13510491]
[1768766870306,0.92897326,3345.8,3344.9,0.13510491]
[1768766870507,0.00228121,3346.1,3344.9,0.13510491]
[1768766870707,0.92913184,3346.0,3344.9,0.13510491]
[1768766871006,0.92913184,3345.9,3344.9,0.13510491]
[1768766871213,1.88200486,3345.8,3344.9,0.00317218]
[1768766871501,0.92913184,3345.7,3344.0,6.0]
[1768766871709,0.92913184,3345.6,3344.1,0.14245685]
[1768766871898,0.92913184,3345.5,3344.1,0.14245685]
[1768766872100,2.55676231,3345.8,3344.1,0.14245685]
[1768766872101,0.92913184,3345.4,3344.1,0.14245685]
[1768766872314,0.92913184,3345.3,3344.1,0.14555126]
[1768766872606,1.60388929,3345.9,3344.1,0.14555126]
[1768766872808,0.9283972,3345.8,3344.1,0.14555126]
[1768766873013,0.9283972,3345.7,3344.1,0.14555126]
[1768766873209,0.9283972,3345.6,3344.1,0.14555126]
[1768766873404,0.9283972,3345.5,3344.1,0.14555126]
[1768766873605,0.9283972,3345.4,3344.1,0.14555126]
[1768766873808,0.9283972,3345.3,3344.1,0.14555126]
[1768766874006,1.60388929,3345.9,3344.1,0.14555126]
[1768766874203,0.92805765,3345.8,3344.1,0.14555126]
[1768766874404,0.92805765,3345.7,3344.1,0.14555126]
[1768766874706,0.92805765,3345.6,3344.1,0.14555126]
[1768766874907,0.92805765,3345.5,3344.1,0.14555126]
[1768766875105,0.92805765,3345.4,3344.1,0.14555126]
[1768766875306,1.60388929,3345.9,3344.1,0.14555126]
[1768766875507,1.88133786,3345.8,3344.1,0.14555126]
[1768766875706,0.92846484,3345.7,3344.1,0.14555126]
[1768766875909,0.92846484,3345.6,3344.1,0.14555126]
[1768766876104,0.15176121,3346.1,3344.1,0.14555126]
[1768766876105,0.95287302,3345.4,3344.1,0.00309441]
[1768766876311,0.92846484,3345.3,3344.1,0.00309441]
[1768766876506,0.92846484,3345.2,3344.1,0.00309441]
[1768766876705,0.95287302,3345.4,3344.1,0.00309441]
[1768766876905,0.92803941,3345.3,3344.1,0.00309441]
[1768766877105,0.92803941,3345.2,3344.1,0.00309441]
[1768766877306,0.95287302,3345.4,3344.1,0.00309441]
[1768766877611,0.92777117,3345.3,3344.1,0.00309441]
[1768766877813,0.92777117,3345.2,3344.1,0.00309441]
[1768766878006,0.95287302,3345.4,3344.1,0.00309441]
[1768766878206,0.92777244,3345.3,3344.1,0.00309441]
[1768766878409,0.92777244,3345.2,3344.1,0.00309441]
[1768766878709,0.92777244,3345.1,3344.1,0.00309441]
[1768766878911,0.92777244,3345.0,3344.1,0.00309441]
[1768766879109,0.92777244,3344.9,3344.1,0.00309441]
[1768766879314,0.95287302,3345.4,3344.1,0.00309441]
[1768766879615,0.92707422,3345.3,3344.1,0.00309441]
[1768766879806,0.92707422,3345.2,3344.1,0.00309441]
[1768766880006,0.92707422,3345.1,3344.1,0.00309441]
[1768766880206,0.92707422,3345.0,3344.1,0.00309441]
[1768766880406,0.95287302,3345.4,3344.1,0.00309441]
[1768766880609,0.92713988,3345.3,3344.1,0.00309441]
[1768766880808,0.92713988,3345.2,3344.1,0.00309441]
[1768766881116,0.92713988,3345.1,3344.1,0.13141699]
[1768766881307,1.683,3345.4,3344.1,0.13141699]
[1768766881511,0.92690265,3345.3,3344.1,0.13141699]
[1768766881708,0.92690265,3345.2,3344.1,0.13141699]
[1768766882002,0.92690265,3345.1,3344.1,0.13141699]
[1768766882208,1.60388929,3346.0,3344.4,0.12832258]
[1768766882413,0.92702422,3345.9,3344.4,0.12832258]
[1768766882607,0.92702422,3345.8,3344.4,0.12832258]
[1768766882808,0.92702422,3345.7,3344.4,0.12832258]
[1768766883116,0.92702422,3345.6,3344.6,1.08225398]
[1768766883318,0.92702422,3345.5,3344.6,1.08225398]
[1768766883616,0.00228121,3346.1,3344.9,0.12832258]
[1768766883809,0.92711451,3346.0,3344.9,0.12832258]
[1768766884013,0.92711451,3345.9,3344.9,0.12832258]
[1768766884212,0.92711451,3345.8,3344.9,0.12832258]
[1768766884412,0.92711451,3345.7,3344.9,0.12832258]
[1768766884619,0.9539314,3346.0,3344.9,0.12832258]
[1768766884818,0.9271605,3345.9,3344.9,0.12832258]
[1768766885017,0.9271605,3345.8,3344.9,0.12832258]
[1768766885218,0.9271605,3345.7,3344.9,0.12832258]
[1768766885514,0.9539314,3346.0,3344.9,0.12832258]
[1768766885815,0.9539314,3345.8,3344.5,1.08225398]
[1768766886017,0.9539314,3345.6,3344.5,0.12832258]
[1768766886223,0.9539314,3345.4,3344.5,0.12832258]
[1768766888117,0.9539314,3345.4,3344.2,0.9539314]
[1768766888322,0.9539314,3345.4,3344.1,0.13141699]
[1768766888513,0.9539314,3345.4,3344.1,1.08534839]
[1768766888709,0.9539314,3345.4,3344.1,0.13141699]
[1768766890916,0.00204684,3345.9,3344.1,0.13141699]
[1768766891116,0.9539314,3345.5,3344.2,0.9539314]
[1768766891312,0.92740274,3345.4,3344.2,0.9539314]
[1768766891723,0.9539314,3345.3,3344.1,0.13141699]
[1768766892325,0.9539314,3345.1,3344.1,0.13141699]
[1768766893026,0.9539314,3345.1,3344.1,0.00309441]
[1768766893423,0.9539314,3344.9,3344.1,0.00309441]
[1768766898337,0.9539314,3344.3,3343.2,0.1496]
[1768766898539,0.9539314,3344.3,3343.1,0.12832258]
[1768766898728,0.9539314,3344.7,3343.4,0.12832258]
[1768766898932,0.92771767,3344.6,3343.5,0.9539314]
[1768766899133,0.9539314,3344.7,3343.5,0.9539314]
[1768766899332,0.92764549,3344.6,3343.5,0.95632425]
[1768766899535,0.9539314,3344.7,3343.5,0.95632425]
[1768766899733,0.92764539,3344.6,3343.5,0.95632425]
[1768766899939,0.9539314,3344.9,3343.5,0.95632425]
[1768766900140,0.92764547,3344.8,3343.5,0.95632425]
[1768766900445,0.92764547,3344.7,3343.5,0.95632425]
[1768766900635,0.92764547,3344.6,3343.5,0.95632425]
[1768766900835,0.9539314,3344.9,3343.5,0.95632425]
[1768766901045,0.9276332,3344.8,3343.5,0.95632425]
[1768766901238,0.9276332,3344.7,3343.5,0.95632425]
[1768766901437,0.9276332,3344.6,3343.5,0.95632425]
[1768766901638,0.9539314,3344.9,3343.5,0.95632425]
[1768766901942,0.9276686,3344.8,3343.5,0.95632425]
[1768766902140,0.9276686,3344.7,3343.5,0.00239285]
[1768766902343,0.9539314,3344.9,3343.5,0.95632425]
[1768766902544,0.9539314,3344.7,3343.5,0.95632425]
[1768766902741,0.9539314,3344.7,3343.5,0.00239285]
[1768766902941,0.92751134,3344.6,3343.5,0.00239285]
[1768766903141,0.9539314,3344.7,3343.5,0.00239285]
[1768766905039,0.9539314,3344.7,3343.5,0.95632425]
[1768766906936,0.9539314,3344.5,3343.5,0.00239285]
[1768766907342,0.9539314,3344.7,3343.5,0.00239285]
[1768766907542,0.92887948,3344.6,3343.5,0.00239285]
[1768766907743,0.9539314,3344.7,3343.5,0.00239285]
[1768766907943,0.9288828,3344.6,3343.5,0.00239285]
[1768766908149,0.9539314,3344.7,3343.5,0.00239285]
[1768766908354,0.92878807,3344.6,3343.5,0.00239285]
[1768766908539,0.9539314,3344.7,3343.5,0.00239285]
[1768766908743,0.92878771,3344.6,3343.5,0.00239285]
[1768766908938,0.9539314,3344.7,3343.5,0.00239285]
[1768766909152,0.92878699,3344.6,3343.5,0.00239285]
[1768766909354,0.9539314,3344.7,3343.5,0.00239285]
[1768766909654,0.92870059,3344.6,3343.5,0.00239285]
[1768766909952,0.9539314,3344.7,3343.5,0.00239285]
[1768766910151,0.92869967,3344.6,3343.5,0.00239285]
[1768766910353,0.9539314,3344.7,3343.5,0.00239285]
[1768766910554,0.92867497,3344.6,3343.5,0.00239285]
[1768766910746,0.9539314,3344.7,3343.5,0.00239285]
[1768766910947,0.928676,3344.6,3343.5,0.00239285]
[1768766911148,0.9539314,3344.7,3343.5,0.00239285]
[1768766911345,0.92860439,3344.6,3343.5,0.00239285]
[1768766911540,0.9539314,3344.7,3343.5,0.00239285]
[1768766911745,0.92860589,3344.6,3343.5,0.00239285]
[1768766911953,0.9539314,3344.7,3343.5,0.00239285]
[1768766912155,0.92860651,3344.6,3343.5,0.00239285]
[1768766912351,1.75340929,3345.2,3343.7,0.9539314]
[1768766912552,0.92855161,3345.1,3343.8,0.13200883]
[1768766912853,0.92855161,3345.0,3343.9,0.9539314]
[1768766913059,0.92855161,3344.9,3343.9,0.9539314]
[1768766913260,0.92855161,3344.8,3343.8,0.13200883]
[1768766913556,0.92855161,3344.7,3343.8,0.13200883]
[1768766913755,0.9539314,3344.9,3343.8,0.13200883]
[1768766913960,0.92868884,3344.8,3343.8,0.13200883]
[1768766914257,0.92868884,3344.7,3343.8,0.13200883]
[1768766914557,0.9539314,3344.9,3343.8,0.13200883]
[1768766914759,0.9288296,3344.8,3343.8,0.13200883]
[1768766914959,0.92883011,3344.7,3343.8,0.13200883]
[1768766915161,0.9539314,3344.9,3343.8,0.13200883]
[1768766915353,0.92900161,3344.8,3343.8,0.13200883]
[1768766915549,0.92900161,3344.7,3343.8,0.13200883]
[1768766915860,0.9539314,3344.9,3343.8,0.13200883]
[1768766916163,0.92900031,3344.8,3343.8,0.13200883]
[1768766916362,0.92900031,3344.7,3343.8,0.13200883]
[1768766916567,1.60388929,3345.2,3343.8,0.13200883]
[1768766916757,0.9539314,3345.0,3343.8,0.13200883]
[1768766916957,0.92918554,3344.9,3343.8,0.13200883]
[1768766917158,0.92918554,3344.8,3343.8,0.13200883]
[1768766917360,0.9539314,3345.0,3343.9,0.13208067]
[1768766917662,0.92943047,3344.9,3343.9,0.13208067]
[1768766917864,0.9539314,3345.2,3343.9,0.13208067]
[1768766918059,0.92945554,3345.1,3343.9,0.13208067]
[1768766918259,0.92945554,3345.0,3343.9,0.13208067]
[1768766918455,0.92945554,3344.9,3343.9,0.13208067]
[1768766918654,0.9539314,3345.2,3343.9,0.13208067]
[1768766918655,0.92945554,3344.8,3343.9,0.13208067]
[1768766918854,0.9539314,3345.2,3343.9,0.13208067]
[1768766919055,0.929681,3345.1,3343.9,0.13208067]
[1768766919259,0.929681,3345.0,3343.9,0.13208067]
[1768766919458,0.929681,3344.9,3343.9,0.13208067]
[1768766919651,0.929681,3344.8,3343.9,0.13208067]
[1768766919862,0.9539314,3345.2,3343.9,0.13208067]
[1768766920055,0.92985319,3345.1,3343.9,0.13208067]
[1768766920255,0.92985319,3345.0,3343.9,0.13208067]
[1768766920462,0.92985319,3344.9,3343.9,0.13208067]
[1768766920760,0.92985319,3344.8,3343.9,0.13208067]
[1768766921064,0.9539314,3345.2,3343.9,0.13208067]
[1768766921267,0.93028806,3345.1,3343.9,0.13208067]
[1768766921564,0.93028806,3345.0,3343.9,0.13208067]
[1768766921754,0.93028806,3344.9,3343.9,0.13208067]
[1768766921954,0.93028806,3344.8,3343.9,0.13208067]
[1768766922162,0.93028806,3344.7,3343.9,0.13208067]
[1768766922365,0.9539314,3345.2,3343.9,0.13208067]
[1768766922663,0.93056688,3345.1,3343.9,0.13208067]
[1768766922857,0.9539314,3345.2,3343.9,0.13208067]
[1768766923059,0.93078014,3345.1,3343.9,0.13208067]
[1768766926166,0.93078014,3345.0,3343.9,0.13208067]
[1768766926467,0.93078014,3344.9,3343.9,0.13208067]
[1768766926670,0.93078014,3344.8,3343.9,0.13208067]
[1768766926870,0.93078014,3344.7,3343.9,0.13208067]
[1768766927166,0.9539314,3345.1,3343.9,0.13208067]
[1768766927367,0.93132981,3345.0,3343.9,0.13208067]
[1768766927562,0.93132981,3344.9,3343.9,0.13208067]
[1768766927761,0.93132981,3344.8,3343.9,0.13208067]
[1768766927962,0.93132981,3344.7,3343.9,0.13208067]
[1768766928262,0.9539314,3345.1,3343.9,0.13208067]
[1768766928459,0.93147291,3345.0,3343.9,0.13208067]
[1768766928654,0.93147291,3344.9,3343.9,0.13208067]
[1768766928859,0.93147291,3344.8,3343.9,0.13208067]
[1768766929062,0.93147291,3344.7,3343.9,0.13208067]
[1768766929263,0.9539314,3345.1,3343.9,0.13208067]
[1768766929562,0.93145264,3345.0,3343.9,0.13208067]
[1768766929762,0.93145264,3344.9,3343.9,0.13208067]
[1768766929963,0.93145264,3344.8,3343.9,0.13208067]
[1768766930171,0.93145264,3344.7,3343.9,0.13208067]
[1768766930369,0.9539314,3345.1,3343.9,0.13208067]
[1768766930571,0.93143713,3345.0,3343.6,0.9539314]
[1768766930757,0.93143713,3344.9,3343.6,1.08601207]
[1768766930962,0.93143713,3344.8,3343.6,1.08601207]
[1768766931164,0.93143713,3344.7,3343.6,1.08601207]
[1768766931365,0.9539314,3345.1,3343.7,0.13208067]
[1768766931573,0.93142639,3345.0,3343.7,0.13208067]
[1768766931773,0.93142639,3344.9,3343.7,0.13208067]
[1768766931964,0.93142639,3344.8,3343.7,0.13208067]
[1768766932164,0.93142639,3344.7,3343.7,0.13208067]
[1768766932365,0.9539314,3345.1,3343.7,0.13208067]
[1768766932565,0.9313871,3345.0,3343.7,0.13208067]
[1768766932769,0.9313871,3344.9,3343.7,0.13208067]
[1768766933068,0.9313871,3344.8,3343.7,0.13208067]
[1768766933364,0.9313871,3344.7,3343.7,0.13208067]
[1768766933562,0.9539314,3345.1,3343.7,0.13208067]
[1768766933875,0.93135116,3345.0,3343.7,0.13208067]
[1768766934068,0.93135116,3344.9,3343.7,0.13208067]
[1768766934266,0.93135116,3344.8,3343.7,0.13208067]
[1768766934467,0.93135116,3344.7,3343.7,0.13208067]
[1768766934663,1.60388929,3345.2,3343.7,0.13208067]
[1768766934868,1.88528626,3345.1,3343.7,0.13208067]
[1768766935071,0.93135486,3345.0,3343.7,0.13208067]
[1768766935271,0.93135486,3344.9,3343.7,0.13208067]
[1768766935471,0.93135486,3344.8,3343.7,0.13208067]
[1768766935665,0.93135486,3344.7,3343.7,0.13208067]
[1768766935874,0.9539314,3345.1,3343.7,0.13208067]
[1768766936178,0.93061301,3345.0,3343.7,0.13208067]
[1768766936478,0.93061301,3344.9,3343.7,0.13208067]
[1768766936678,0.93061301,3344.8,3343.7,0.13208067]
[1768766936978,0.93061301,3344.7,3343.7,0.13208067]
[1768766937273,1.60388929,3345.2,3343.7,0.13208067]
[1768766937274,0.93061301,3344.6,3343.7,0.13208067]
[1768766937576,0.9539314,3344.6,3343.5,0.00239285]
[1768766937777,0.930609,3344.5,3343.5,0.00239285]
[1768766937979,0.9539314,3344.8,3343.5,0.95632425]
[1768766938173,0.93056569,3344.7,3343.5,0.95632425]
[1768766938373,0.93056569,3344.6,3343.5,0.95632425]
[1768766938572,0.93056569,3344.5,3343.5,0.95632425]
[1768766938769,0.9539314,3344.8,3343.5,0.95632425]
[1768766938973,0.93053486,3344.7,3343.5,0.95632425]
[1768766939174,0.93053486,3344.6,3343.5,0.95632425]
[1768766939373,0.93053486,3344.5,3343.5,0.95632425]
[1768766939578,0.9539314,3344.8,3343.5,0.95632425]
[1768766939775,0.93059119,3344.7,3343.5,0.95632425]
[1768766939976,0.93059119,3344.6,3343.5,0.95632425]
[1768766940178,0.93059119,3344.5,3343.5,0.95632425]
[1768766940371,0.9539314,3344.8,3343.5,0.95632425]
[1768766940574,0.93064241,3344.7,3343.5,0.95632425]
[1768766940773,1.88457381,3344.6,3343.5,0.00239285]
[1768766940973,0.93064241,3344.5,3343.5,0.00239285]
[1768766941179,0.9539314,3344.6,3343.5,0.00239285]
[1768766941380,0.93066076,3344.5,3343.5,0.00239285]
[1768766941579,0.9539314,3344.6,3343.5,0.00239285]
[1768766941776,0.93065964,3344.5,3343.5,0.00239285]
[1768766941980,0.9539314,3344.6,3343.5,0.00239285]
[1768766941981,0.93064367,3344.4,3343.5,0.00239285]
[1768766942178,0.9539314,3344.4,3343.5,0.00239285]
[1768766942883,1.60388929,3344.9,3343.5,0.00239285]
[1768766943086,0.93063592,3344.8,3343.5,0.00239285]
[1768766943279,0.93063592,3344.7,3343.5,0.00239285]
[1768766943490,0.93063592,3344.6,3343.5,0.00239285]
[1768766943680,0.93063592,3344.5,3343.5,0.00239285]
[1768766943881,0.93063592,3344.4,3343.5,0.00239285]
[1768766944082,2.55863378,3345.0,3343.5,0.00239285]
[1768766944282,0.93059351,3344.9,3343.5,0.00239285]
[1768766944581,0.93059351,3344.8,3343.5,0.00239285]
[1768766944883,0.93059351,3344.7,3343.5,0.00239285]
[1768766945084,0.93059351,3344.6,3343.5,0.00239285]
[1768766945285,0.93059351,3344.5,3343.5,0.00239285]
[1768766945480,0.93059351,3344.4,3343.5,0.00239285]
[1768766945688,2.55863378,3345.0,3343.5,0.00239285]
[1768766945983,0.9304765,3344.9,3343.5,0.00239285]
[1768766946176,2.6134765,3344.8,3343.5,0.00239285]
[1768766946375,0.9304765,3344.7,3343.5,0.00239285]
[1768766963586,0.95474449,3344.5,3343.5,0.00239285]
[1768766963786,0.93046242,3344.4,3343.5,0.00239285]
[1768766964088,0.93046242,3344.3,3343.5,0.00239285]
[1768766964288,0.93046242,3344.2,3343.5,0.00239285]
[1768766964488,3.28688929,3344.8,3343.5,0.00239285]
[1768766964798,0.93044577,3344.7,3343.5,0.00239285]
[1768766964990,0.93044577,3344.6,3343.5,0.00239285]
[1768766965191,0.93044577,3344.5,3343.5,0.00239285]
[1768766965390,0.93044577,3344.4,3343.5,0.00239285]
[1768766965590,0.93044577,3344.3,3343.5,0.00239285]
[1768766965889,0.93044577,3344.2,3343.5,0.00239285]
[1768766966089,3.28688929,3344.8,3343.5,0.00239285]
[1768766966292,0.93012702,3344.7,3343.5,0.00239285]
[1768766966590,0.93012702,3344.6,3343.5,0.00239285]
[1768766966891,0.93012724,3344.5,3343.5,0.00239285]
[1768766967293,3.28688929,3344.8,3343.5,0.00239285]
[1768766968288,1.683,3344.8,3343.5,0.00239285]
[1768766968496,3.28653076,3344.8,3343.5,0.00239285]
[1768766968696,0.93028757,3344.7,3343.5,0.00239285]
[1768766968994,3.28653076,3344.8,3343.5,0.00239285]
[1768766969696,1.683,3344.8,3343.5,0.00239285]
[1768766971498,0.93037749,3344.7,3343.5,0.00239285]
[1768766971797,0.93037749,3344.6,3343.5,0.00239285]
[1768766971998,0.93037749,3344.5,3343.5,0.00239285]
[1768766972193,0.93037749,3344.4,3343.5,0.00239285]
[1768766972389,0.93037749,3344.3,3343.5,0.00239285]
[1768766972589,0.93037749,3344.2,3343.5,0.00239285]
[1768766972790,3.28668574,3344.8,3343.5,0.00239285]
[1768766972991,0.93030053,3344.7,3343.5,0.00239285]
[1768766973289,0.93030053,3344.6,3343.5,0.00239285]
[1768766973483,0.93030053,3344.5,3343.5,0.00239285]
[1768766973803,0.93030053,3344.4,3343.5,0.00047816]
[1768766974100,0.93030053,3344.3,3343.5,0.00047816]
[1768766974399,0.93030053,3344.3,3342.8,0.13519781]
[1768766974400,0.93030053,3344.2,3342.8,0.13519781]
[1768766974692,0.93030053,3344.1,3342.8,0.13519781]
[1768766974900,0.93030053,3344.0,3342.8,0.13519781]
[1768766975093,0.95474449,3344.3,3342.8,0.13519781]
[1768766975288,0.92988765,3344.2,3342.8,0.1377009]
[1768766975494,0.92988765,3344.1,3342.8,0.1377009]
[1768766975693,0.92988765,3344.0,3342.8,0.1377009]
[1768766975897,0.95474449,3344.3,3342.8,0.1377009]
[1768766976100,0.9298877,3344.2,3342.8,0.1377009]
[1768766976302,0.9298877,3344.1,3342.8,0.1377009]
[1768766976501,0.9298877,3344.0,3342.8,0.1377009]
[1768766976702,0.95474449,3344.3,3342.8,0.1377009]
[1768766976902,0.92976865,3344.2,3342.8,0.1377009]
[1768766977102,0.92976865,3344.1,3342.8,0.1377009]
[1768766977303,0.92976865,3344.0,3342.8,0.1377009]
[1768766977503,0.95474449,3344.3,3342.8,0.1377009]
[1768766977703,0.92967617,3344.2,3342.8,0.1377009]
[1768766977904,0.92967617,3344.1,3342.8,0.1377009]
[1768766978108,0.95474449,3344.3,3342.8,0.1377009]
[1768766978306,0.92960532,3344.2,3342.8,0.1377009]
[1768766978602,0.92960532,3344.1,3342.8,0.1377009]
[1768766978798,0.95474449,3344.3,3342.8,0.1377009]
[1768766979000,0.92960691,3344.2,3342.8,0.1377009]
[1768766979201,0.92960691,3344.1,3342.8,0.1377009]
[1768766979401,0.92960691,3344.0,3342.8,0.00250309]
[1768766979710,0.92960691,3343.9,3342.8,0.00250309]
[1768766979897,0.95474449,3344.3,3342.8,0.00250309]
[1768766980205,0.92949265,3344.2,3342.8,0.00250309]
[1768766980399,0.92949265,3344.1,3342.8,0.00250309]
[1768766980597,0.92949265,3344.0,3342.8,0.00250309]
[1768766980907,0.92949265,3343.9,3342.8,0.00250309]
[1768766981105,0.95474449,3344.3,3342.8,0.00250309]
[1768766981309,0.92923606,3344.2,3342.8,0.00250309]
[1768766981504,0.92923606,3344.1,3342.8,0.00250309]
[1768766981705,0.92923606,3344.0,3342.8,0.00250309]
[1768766981908,0.92923606,3343.9,3342.8,0.00250309]
[1768766982106,0.95474449,3344.3,3342.8,0.00250309]
[1768766982307,0.92917422,3344.2,3342.8,0.00250309]
[1768766982509,2.992,3344.4,3342.8,0.13185712]
[1768766982510,0.92917422,3344.1,3342.8,0.13185712]
[1768766982699,0.92917422,3344.0,3342.8,0.13185712]
[1768766982899,0.92917422,3343.9,3342.8,0.13185712]
[1768766983201,2.992,3344.4,3342.8,0.13185712]
[1768766983498,0.92909975,3344.3,3342.8,0.13185712]
[1768766983698,0.92909975,3344.2,3342.8,0.13185712]
[1768766983904,0.92909975,3344.1,3342.8,0.13185712]
[1768766984106,0.92909975,3344.0,3342.8,0.13185712]
[1768766984310,0.92909975,3343.9,3342.8,0.13185712]
[1768766984508,2.992,3344.4,3342.8,0.13185712]
[1768766984806,0.92904293,3344.3,3342.8,0.13185712]
[1768766985007,0.92904293,3344.2,3342.8,0.13185712]
[1768766985208,0.92904293,3344.1,3342.8,0.13185712]
[1768766985408,0.92904293,3344.0,3342.8,0.13185712]
[1768766985607,1.683,3344.3,3342.8,0.13185712]
[1768766985809,0.92903397,3344.2,3342.8,0.13185712]
[1768766986012,0.92903397,3344.1,3342.8,0.13185712]
[1768766986211,0.92903397,3344.0,3342.8,0.13185712]
[1768766986412,1.683,3344.4,3342.8,0.13185712]
[1768766986616,0.92904448,3344.3,3342.8,0.13185712]
[1768766986808,0.92904448,3344.2,3342.8,0.13185712]
[1768766987004,0.92904448,3344.1,3342.8,0.13185712]
[1768766987204,0.92904448,3344.0,3342.8,0.13185712]
[1768766987403,1.683,3344.4,3342.8,0.13185712]
[1768766987604,0.9290648,3344.3,3342.8,0.13185712]
[1768766987904,0.9290648,3344.2,3342.8,0.13185712]
[1768766988104,0.9290648,3344.1,3342.8,0.13185712]
[1768766988304,0.9290648,3344.0,3342.8,0.13185712]
[1768766988505,1.683,3344.4,3342.8,0.13185712]
[1768766988713,0.92910491,3344.3,3342.8,0.13185712]
[1768766988901,0.92910491,3344.2,3342.8,0.13185712]
[1768766989108,0.92910491,3344.1,3342.8,0.13185712]
[1768766989305,0.92910491,3344.0,3342.8,0.13185712]
[1768766989507,1.683,3344.4,3342.8,0.13185712]
[1768766989705,0.92915197,3344.3,3342.8,0.13185712]
[1768766989912,0.92915197,3344.2,3342.9,0.12935403]
[1768766990108,0.92915197,3344.1,3342.9,0.12935403]
[1768766990308,1.683,3344.4,3342.9,0.12935403]
[1768766990514,0.92929227,3344.3,3342.9,0.12935403]
[1768766990815,0.92929227,3344.2,3342.9,0.12935403]
[1768766991019,1.683,3344.5,3342.9,0.12935403]
[1768766991218,0.92938419,3344.4,3342.9,0.12935403]
[1768766991518,0.92938419,3344.3,3342.9,0.12935403]
[1768766991713,1.683,3344.5,3342.9,0.12935403]
[1768766991910,0.92940489,3344.4,3342.9,0.12935403]
[1768766992116,0.92940489,3344.3,3342.9,0.12935403]
[1768766992318,0.92940489,3344.2,3342.9,0.12935403]
[1768766992517,1.683,3344.5,3342.9,0.12935403]
[1768766992720,0.92950011,3344.4,3342.9,0.12935403]
[1768766992915,0.92950011,3344.3,3342.9,0.12935403]
[1768766993219,0.92950011,3344.2,3342.9,0.12935403]
[1768766993419,1.683,3344.5,3342.9,0.12935403]
[1768766993619,0.92955367,3344.4,3342.9,0.12935403]
[1768766993823,0.92955367,3344.3,3342.9,0.12935403]
[1768766994020,0.92955367,3344.2,3342.9,0.12935403]
[1768766994324,1.683,3344.5,3342.9,0.12935403]
[1768766994517,0.92958621,3344.4,3342.9,0.12935403]
[1768766994713,0.92958621,3344.3,3342.9,0.12935403]
[1768766994913,0.92958621,3344.2,3342.9,0.12935403]
[1768766995114,1.683,3344.5,3342.9,0.12935403]
[1768766995417,0.92961718,3344.4,3342.9,0.12935403]
[1768766995621,0.92961718,3344.3,3342.9,0.12935403]
[1768766995912,0.92961718,3344.2,3342.9,0.12935403]
[1768766996114,1.683,3344.5,3342.9,0.12935403]
[1768766996314,0.92840068,3344.4,3342.9,0.12935403]
[1768766996510,0.92840068,3344.3,3342.9,0.12935403]
[1768766996715,0.92840068,3344.2,3342.9,0.12935403]
[1768766996923,1.60368574,3344.8,3342.9,0.12935403]
[1768766997113,2.28736355,3344.7,3342.9,0.12935403]
[1768766997317,0.92836355,3344.6,3342.9,0.12935403]
[1768766997518,0.92836355,3344.5,3342.9,0.12935403]
[1768766997720,0.92836355,3344.4,3342.9,0.12935403]
[1768766997921,0.92836355,3344.3,3342.9,0.12935403]
[1768766998121,0.92836355,3344.2,3342.9,0.12935403]
[1768766998323,1.359,3344.7,3342.9,0.12935403]
[1768766998524,0.92835364,3344.6,3342.9,0.12935403]
[1768766998826,0.92835364,3344.5,3342.9,0.12935403]
[1768766999028,0.92835364,3344.4,3342.9,0.12935403]
[1768766999225,0.92835364,3344.3,3342.9,0.12935403]
[1768766999424,0.92835364,3344.2,3342.9,0.12935403]
[1768766999729,1.359,3344.7,3342.9,0.12935403]
[1768767000029,0.92835325,3344.6,3342.9,0.12935403]
[1768767000329,0.92835325,3344.5,3342.9,0.12935403]
[1768767000530,0.92835325,3344.4,3342.9,0.12935403]
[1768767000728,0.92835325,3344.3,3342.9,0.12935403]
[1768767000929,0.92835325,3344.2,3342.9,0.12935403]
[1768767001225,1.359,3344.7,3342.9,0.12935403]
[1768767001426,0.92823365,3344.6,3342.9,0.12935403]
[1768767001633,0.92823365,3344.5,3342.9,0.12935403]
[1768767001828,0.92823365,3344.4,3342.9,0.12935403]
[1768767002031,0.92823365,3344.3,3342.9,0.12935403]
[1768767002231,0.92823365,3344.2,3342.9,0.12935403]
[1768767002531,1.359,3344.7,3342.9,0.12935403]
[1768767002727,0.92827714,3344.6,3342.9,0.12935403]
[1768767003031,0.92827714,3344.5,3342.9,0.12935403]
[1768767003226,0.92827714,3344.4,3342.9,0.12935403]
[1768767003433,0.92827714,3344.3,3342.9,0.12935403]
[1768767003627,0.92827714,3344.2,3342.9,0.12935403]
[1768767003829,1.359,3344.7,3342.9,0.12935403]
[1768767004128,0.92829726,3344.6,3342.9,0.12935403]
[1768767004324,0.92829726,3344.5,3342.9,0.12935403]
[1768767004527,0.92829726,3344.4,3342.9,0.12935403]
[1768767004724,0.92829726,3344.3,3342.9,0.12935403]
[1768767004926,0.92829726,3344.2,3343.2,0.95468292]
[1768767005129,2.31368292,3344.7,3343.2,0.95468292]
[1768767005324,0.92816488,3344.6,3343.2,0.95468292]
[1768767005529,0.92816488,3344.5,3343.2,0.95468292]
[1768767005730,0.92816488,3344.4,3343.2,0.95468292]
[1768767005931,0.92816488,3344.3,3343.2,0.95468292]
[1768767006129,0.92816488,3344.2,3343.2,0.95468292]
[1768767006331,2.31368292,3344.7,3343.2,0.95468292]
[1768767006630,0.92814225,3344.6,3343.2,0.95468292]
[1768767006833,0.95468292,3344.4,3342.9,0.12935403]
[1768767007033,0.92814225,3344.3,3342.9,0.12935403]
[1768767007231,0.92814225,3344.2,3342.9,0.12935403]
[1768767007432,0.95468292,3344.2,3342.9,0.12935403]
[1768767010431,0.92816701,3344.1,3342.8,1.10680601]